bitfinex/quotes_ETHUSD_20251218
["timestamp","ask_amount","ask_price","bid_price","bid_amount"]
[1766019700836,1.47112229,2839.1,2837.8,6.10494463]
[1766019701040,1.47112229,2839.1,2838.0,1.3442]
[1766019701356,0.46438023,2839.0,2838.2,1.3442]
[1766019701549,2.12128023,2839.0,2838.3,1.7145]
[1766019701726,0.35924025,2838.9,2838.3,1.7145]
[1766019701927,0.82362048,2838.9,2838.3,1.7145]
[1766019702348,0.35924025,2838.9,2837.9,0.3703]
[1766019702550,1.6569,2838.7,2838.0,1.7145]
[1766019703565,2.66583613,2839.0,2837.8,6.10494463]
[1766019703735,1.00893613,2839.0,2837.8,6.10494463]
[1766019704063,0.3487,2838.8,2838.0,1.7145]
[1766019704358,1.6569,2838.7,2838.0,1.7145]
[1766019706869,1.6569,2838.7,2837.8,6.10494463]
[1766019707072,1.6579,2839.0,2838.1,1.3442]
[1766019707274,1.6579,2839.0,2838.4,1.3442]
[1766019707435,1.6579,2839.0,2838.4,1.7145]
[1766019707972,1.6569,2838.9,2838.4,1.7145]
[1766019708160,0.3487,2838.8,2838.4,1.7145]
[1766019708551,1.6569,2838.8,2838.4,1.7145]
[1766019710268,0.001,2839.0,2838.1,6.10494463]
[1766019710474,0.001,2839.0,2838.2,1.7145]
[1766019710936,0.001,2839.0,2838.1,6.10494463]
[1766019711136,0.001,2839.0,2838.2,1.3442]
[1766019711335,0.001,2839.0,2838.4,1.3442]
[1766019711550,0.001,2839.0,2838.4,1.7145]
[1766019712140,0.3497,2839.0,2838.4,1.7145]
[1766019713216,1.6579,2839.0,2838.4,1.7145]
[1766019713915,1.6569,2838.6,2838.0,0.002]
[1766019714080,1.6569,2838.6,2838.0,1.7165]
[1766019714281,1.6579,2838.8,2838.0,1.7165]
[1766019714513,2.93928796,2838.8,2838.0,1.7165]
[1766019714714,0.3487,2838.7,2838.1,1.7145]
[1766019714907,0.81308023,2838.7,2838.1,1.7145]
[1766019715120,0.3487,2838.7,2838.1,1.7145]
[1766019717225,0.3487,2838.7,2838.0,0.002]
[1766019717399,1.6569,2838.7,2838.2,1.7145]
[1766019720263,1.6569,2838.7,2838.2,0.3703]
[1766019720546,0.001,2839.0,2838.5,1.7145]
[1766019720842,0.001,2839.0,2838.6,0.3703]
[1766019721134,0.001,2839.0,2838.6,1.7145]
[1766019723840,0.001,2839.3,2838.9,0.3703]
[1766019724139,0.001,2839.3,2839.0,1.7145]
[1766019726347,0.001,2839.3,2839.0,1.3442]
[1766019727008,0.001,2839.3,2838.4,1.3442]
[1766019727009,0.98644262,2839.3,2838.4,1.3442]
[1766019727213,0.46538023,2839.3,2838.6,1.3442]
[1766019727449,0.3497,2839.3,2838.7,1.7145]
[1766019729362,1.6569,2839.0,2838.1,0.002]
[1766019729574,0.001,2839.3,2838.2,0.3703]
[1766019729860,0.5445559,2839.2,2838.2,1.7145]
[1766019730058,1.3082,2838.9,2838.2,1.7145]
[1766019730352,1.6569,2838.8,2838.2,1.7145]
[1766019730553,0.5445559,2838.9,2838.1,0.002]
[1766019730758,0.3437,2838.5,2838.1,0.002]
[1766019730919,1.6362,2838.5,2838.1,0.002]
[1766019731120,1.6362,2838.5,2838.1,1.7253]
[1766019731541,1.6362,2838.5,2838.1,1.3542]
[1766019731761,1.6362,2838.5,2838.1,0.002]
[1766019732428,1.6362,2838.5,2838.1,1.3542]
[1766019732831,1.6495,2838.4,2838.1,0.002]
[1766019733517,0.5445559,2838.9,2838.1,0.002]
[1766019733518,1.6495,2838.3,2838.1,0.002]
[1766019736065,1.6495,2838.2,2838.0,0.002]
[1766019736529,0.357,2838.2,2838.0,0.002]
[1766019736935,1.6495,2838.3,2838.0,0.002]
[1766019737844,0.405504,2838.6,2838.0,0.002]
[1766019738022,1.2925,2838.4,2838.0,0.002]
[1766019740343,1.6495,2838.4,2838.0,1.3542]
[1766019740566,1.6495,2838.4,2838.0,1.7253]
[1766019743436,0.357,2838.4,2838.0,1.7253]
[1766019744364,1.6495,2838.6,2838.0,1.7253]
[1766019744563,1.86088802,2838.6,2838.0,1.7253]
[1766019745168,0.357,2838.5,2838.0,1.7253]
[1766019745463,1.6495,2838.5,2838.0,1.7253]
[1766019746231,1.6495,2838.5,2838.1,1.3522]
[1766019746449,1.6495,2838.5,2838.1,1.7233]
[1766019747966,1.6495,2838.5,2838.1,1.3522]
[1766019748669,1.6495,2838.5,2838.0,0.3731]
[1766019748842,1.6495,2838.5,2838.1,1.3522]
[1766019749048,0.21138802,2838.6,2838.0,0.002]
[1766019749231,1.6495,2838.6,2838.0,1.7253]
[1766019749573,1.6495,2838.4,2838.0,1.7253]
[1766019749935,0.357,2838.5,2838.0,0.002]
[1766019750136,1.2925,2838.4,2838.0,0.002]
[1766019752481,0.357,2838.3,2838.0,0.002]
[1766019752651,1.6495,2838.3,2838.0,0.002]
[1766019752852,1.2925,2838.5,2838.0,0.002]
[1766019753055,1.2925,2838.5,2837.6,0.002]
[1766019753056,0.357,2838.0,2837.6,0.002]
[1766019753382,0.5445559,2838.3,2837.5,0.002]
[1766019753383,1.6495,2837.7,2837.5,0.002]
[1766019753779,0.5445559,2838.3,2837.2,0.002]
[1766019754000,1.2925,2838.0,2837.2,0.002]
[1766019754179,0.98817048,2838.2,2837.2,0.002]
[1766019754180,0.357,2837.7,2837.2,0.002]
[1766019754352,1.6495,2837.6,2837.2,0.002]
[1766019754749,1.2925,2837.6,2837.2,0.002]
[1766019754982,0.357,2837.5,2837.2,0.002]
[1766019755481,0.98817048,2838.2,2837.2,0.002]
[1766019755672,0.357,2837.8,2837.2,0.002]
[1766019755871,1.2925,2837.5,2837.2,0.002]
[1766019756071,0.357,2837.5,2837.2,0.002]
[1766019756387,1.6495,2837.6,2837.2,0.002]
[1766019758681,1.6495,2837.6,2837.2,1.7253]
[1766019759299,0.5577099,2838.1,2837.2,0.002]
[1766019759499,0.357,2838.0,2837.2,0.002]
[1766019759704,1.6495,2837.8,2837.2,0.002]
[1766019760010,1.6495,2837.8,2837.2,1.3542]
[1766019760210,1.6495,2837.8,2837.2,1.7253]
[1766019760412,3.18222638,2838.2,2837.2,1.7253]
[1766019760611,3.18222638,2838.2,2837.2,0.002]
[1766019760612,0.46438023,2838.1,2837.2,0.002]
[1766019760817,1.6495,2838.1,2837.4,0.3621]
[1766019761019,1.86655624,2838.1,2837.5,1.6583]
[1766019763009,1.6157,2838.0,2837.5,1.6583]
[1766019763985,0.21705624,2838.1,2837.5,1.6583]
[1766019764185,0.46438023,2838.3,2837.2,0.002]
[1766019764518,1.00893613,2838.2,2837.2,0.002]
[1766019764811,1.6157,2838.1,2837.2,0.002]
[1766019765017,1.6157,2838.1,2837.2,1.2982]
[1766019765218,1.00893613,2838.1,2837.2,1.2982]
[1766019765431,1.2443,2837.8,2837.2,1.2982]
[1766019765598,0.3714,2837.7,2837.3,1.6583]
[1766019766826,1.6157,2837.7,2837.3,1.6583]
[1766019767695,1.2443,2838.1,2837.3,1.6583]
[1766019768008,1.6157,2837.9,2837.3,1.6583]
[1766019769238,0.001,2838.4,2837.7,6.10312166]
[1766019769536,1.6157,2838.8,2838.3,1.2962]
[1766019769712,1.6157,2838.8,2838.3,1.6583]
[1766019770028,1.2443,2838.8,2838.3,1.6583]
[1766019770223,0.3714,2838.7,2838.3,1.6583]
[1766019772504,1.2443,2838.6,2837.3,1.2962]
[1766019772827,1.2443,2838.6,2837.2,1.2982]
[1766019772828,0.3714,2838.0,2837.2,1.2982]
[1766019774256,0.3714,2838.3,2837.2,1.2982]
[1766019774455,1.6157,2838.3,2837.2,1.2982]
[1766019774653,1.6157,2838.3,2837.4,1.2962]
[1766019774860,1.6157,2838.3,2837.6,1.2962]
[1766019775653,0.3714,2838.2,2837.6,1.2962]
[1766019776463,0.001,2838.0,2837.6,1.4086]
[1766019777250,0.3724,2838.0,2837.6,1.2962]
[1766019777453,0.3724,2838.0,2837.4,0.1124]
[1766019777647,0.3724,2838.0,2837.4,1.4086]
[1766019777855,1.2453,2838.0,2837.4,1.2962]
[1766019778157,1.6157,2837.9,2837.4,1.2962]
[1766019778340,1.6157,2837.8,2837.4,1.2962]
[1766019778930,0.3714,2837.8,2837.4,1.2962]
[1766019779464,1.6157,2837.7,2837.2,1.2982]
[1766019782076,1.6157,2837.7,2837.2,1.4106]
[1766019783981,1.6157,2837.6,2837.2,1.2982]
[1766019784284,0.3714,2837.9,2837.2,0.002]
[1766019784442,1.2443,2837.7,2837.2,0.002]
[1766019784643,1.6157,2837.6,2837.2,0.002]
[1766019784975,0.3714,2837.5,2837.2,0.002]
[1766019785175,1.6157,2837.5,2837.2,0.002]
[1766019786065,0.3714,2837.6,2837.2,1.2982]
[1766019786374,1.6157,2837.7,2837.2,1.4106]
[1766019786579,0.3714,2837.7,2837.2,1.4106]
[1766019787249,1.6157,2837.9,2837.2,1.4106]
[1766019787588,1.6157,2837.9,2837.2,1.2982]
[1766019787770,0.001,2838.0,2837.6,1.2962]
[1766019788005,0.001,2838.0,2837.8,1.2962]
[1766019789502,0.3714,2837.8,2837.3,1.2962]
[1766019789690,1.2443,2837.9,2837.3,1.4086]
[1766019790089,0.3724,2838.0,2837.3,1.4086]
[1766019790488,0.3724,2838.0,2837.5,1.3148]
[1766019790803,1.84984241,2838.0,2837.5,1.3148]
[1766019791739,1.6687,2837.9,2837.5,1.3148]
[1766019793240,0.21284241,2838.0,2837.2,0.002]
[1766019793241,0.3702,2837.8,2837.2,0.002]
[1766019793441,1.6687,2837.5,2837.2,0.002]
[1766019793744,1.6687,2837.4,2837.2,0.002]
[1766019793916,0.3702,2837.4,2837.2,0.002]
[1766019794916,0.3702,2837.5,2837.2,0.002]
[1766019795135,1.6687,2837.5,2837.2,0.002]
[1766019795854,0.3702,2837.7,2837.2,0.002]
[1766019796015,0.3702,2837.9,2837.3,1.3587]
[1766019798951,0.001,2838.0,2837.3,1.2463]
[1766019799149,0.001,2838.0,2837.7,1.2463]
[1766019799643,0.3712,2838.0,2837.5,1.3587]
[1766019799851,1.6697,2838.0,2837.5,1.3587]
[1766019801254,0.3702,2837.9,2837.5,1.2463]
[1766019802760,1.2985,2837.9,2837.2,1.2483]
[1766019803058,0.3702,2837.6,2837.2,1.2483]
[1766019803440,0.3702,2837.5,2837.2,0.002]
[1766019804552,1.6687,2837.5,2837.2,0.002]
[1766019806451,0.5445559,2837.9,2837.2,0.002]
[1766019806452,0.3702,2837.4,2837.2,0.002]
[1766019806679,1.6687,2837.4,2837.2,0.002]
[1766019807165,0.3702,2837.4,2837.2,0.002]
[1766019807465,0.3702,2837.5,2837.2,0.002]
[1766019807869,1.6687,2837.5,2837.2,0.002]
[1766019810973,0.3702,2837.8,2837.1,1.2483]
[1766019811269,0.3702,2837.8,2837.3,1.2463]
[1766019811470,0.3702,2837.7,2837.3,1.2463]
[1766019811774,1.6687,2837.7,2837.3,1.2463]
[1766019813980,0.3702,2837.6,2837.2,1.3607]
[1766019815089,0.3702,2837.6,2837.2,1.2463]
[1766019817487,0.3702,2837.5,2837.0,0.002]
[1766019817690,1.6687,2837.5,2837.0,0.002]
[1766019817984,1.2985,2837.3,2837.0,0.002]
[1766019818183,1.6687,2837.2,2837.0,0.002]
[1766019818393,1.06561829,2837.6,2836.8,0.002]
[1766019818394,0.3702,2837.1,2836.8,0.002]
[1766019818593,1.52999852,2837.2,2836.6,0.002]
[1766019818775,0.3702,2837.0,2836.6,0.002]
[1766019818953,0.3702,2836.8,2836.6,0.002]
[1766019819151,0.3702,2836.7,2836.6,0.002]
[1766019819371,0.3702,2836.6,2836.3,1.2]
[1766019819557,0.3702,2836.3,2836.0,0.002]
[1766019819751,0.3702,2836.2,2836.0,0.002]
[1766019820181,1.6687,2836.2,2836.0,0.002]
[1766019821155,0.3745,2836.1,2835.7,1.2463]
[1766019821359,0.3745,2836.1,2834.7,3.52766193]
[1766019821360,0.3745,2836.4,2835.8,0.3555]
[1766019821575,0.58955802,2836.4,2835.8,1.6161]
[1766019821773,1.3117,2836.3,2835.8,1.2606]
[1766019821971,0.3745,2836.2,2835.8,1.2606]
[1766019823888,0.3745,2836.1,2835.8,0.002]
[1766019824792,1.6862,2836.1,2835.8,0.002]
[1766019825001,1.00893613,2836.6,2835.3,1.2606]
[1766019825197,1.3117,2836.3,2835.3,1.2606]
[1766019825386,1.3117,2836.1,2835.3,0.3555]
[1766019825560,0.3745,2836.0,2835.4,1.2106]
[1766019825953,0.3745,2836.0,2835.4,0.3555]
[1766019826168,1.3117,2836.1,2835.5,0.3555]
[1766019826591,1.3117,2836.1,2835.2,6.11121784]
[1766019826753,0.3745,2835.8,2835.2,0.3555]
[1766019827381,1.6862,2835.7,2835.2,0.3555]
[1766019827785,0.3745,2835.7,2835.3,1.2606]
[1766019828795,0.3745,2835.7,2835.3,1.6161]
[1766019829098,1.6862,2835.9,2835.3,1.6161]
[1766019829881,0.3745,2836.2,2835.4,1.2606]
[1766019830076,1.3117,2835.9,2835.4,1.2606]
[1766019830268,5.23960431,2836.6,2835.5,1.2606]
[1766019830609,1.3117,2836.2,2835.4,0.3555]
[1766019830901,1.6862,2835.9,2835.4,1.6161]
[1766019832379,1.6862,2836.4,2835.5,1.6161]
[1766019832577,0.5445559,2836.4,2835.5,1.6161]
[1766019832790,1.3117,2836.2,2835.5,1.6161]
[1766019833108,0.3745,2836.1,2835.5,0.3555]
[1766019833284,1.3117,2836.2,2835.7,1.2606]
[1766019833480,0.3745,2836.1,2835.7,1.2606]
[1766019833874,1.6862,2836.1,2835.7,1.2606]
[1766019834608,1.3117,2836.1,2835.5,6.46671784]
[1766019834810,0.3745,2835.9,2835.5,7.72731784]
[1766019836609,0.3745,2835.9,2835.5,7.37181784]
[1766019836974,1.6862,2835.9,2835.5,7.37181784]
[1766019837179,1.6862,2835.9,2835.3,6.11321784]
[1766019837381,1.6862,2835.9,2835.3,7.37381784]
[1766019837701,1.6862,2835.9,2835.3,7.72931784]
[1766019838077,0.3745,2835.6,2835.3,0.002]
[1766019838413,1.6862,2835.6,2835.3,0.002]
[1766019839112,0.3745,2835.5,2835.3,0.002]
[1766019839311,0.3745,2835.5,2834.9,6.11321784]
[1766019839312,1.6862,2835.3,2834.9,0.002]
[1766019839491,10.10177687,2836.0,2834.6,0.002]
[1766019839492,1.3117,2835.1,2834.6,0.002]
[1766019839691,0.3745,2835.0,2834.6,1.2626]
[1766019840014,0.3745,2835.1,2834.7,1.2606]
[1766019840185,1.00893613,2835.7,2834.7,0.3555]
[1766019840186,0.3745,2835.4,2834.7,0.3555]
[1766019840390,0.3745,2835.4,2835.0,1.2606]
[1766019840898,0.3745,2835.3,2834.9,1.6161]
[1766019841100,0.3745,2835.6,2834.8,1.2606]
[1766019841307,0.3745,2835.6,2835.0,1.2606]
[1766019841619,0.3745,2835.6,2835.0,0.3555]
[1766019841791,0.3745,2835.6,2835.2,1.2606]
[1766019842006,0.3745,2835.6,2835.0,1.2606]
[1766019842294,1.3117,2835.5,2834.7,7.72731784]
[1766019842483,1.3117,2835.4,2834.7,7.72731784]
[1766019842680,0.3745,2835.3,2834.7,7.72731784]
[1766019842910,0.3745,2835.3,2834.8,0.3555]
[1766019843111,0.3745,2835.3,2834.9,1.2606]
[1766019844487,0.3745,2835.3,2834.7,1.6161]
[1766019844811,0.3745,2835.3,2834.9,1.6161]
[1766019845014,1.6862,2835.4,2835.0,1.2606]
[1766019845186,0.3745,2835.4,2835.0,1.2606]
[1766019845700,0.3745,2835.4,2835.0,1.6161]
[1766019846092,0.3745,2835.2,2834.6,1.2626]
[1766019846289,1.6862,2835.1,2834.6,1.6181]
[1766019846592,0.3745,2835.1,2834.7,1.2606]
[1766019847030,1.6862,2835.1,2834.7,1.2606]
[1766019847541,0.3745,2835.0,2834.6,1.6181]
[1766019848131,0.46438023,2835.8,2834.8,0.3555]
[1766019848132,0.3745,2835.6,2834.8,0.3555]
[1766019848440,0.3745,2835.6,2834.6,0.002]
[1766019848441,1.6862,2836.0,2835.4,6.46671784]
[1766019848587,1.6862,2836.0,2835.4,1.6161]
[1766019851730,0.001,2836.1,2835.1,1.06048099]
[1766019851731,0.3669,2835.7,2835.1,1.06048099]
[1766019851933,1.3783,2835.7,2834.7,0.352]
[1766019852229,0.3669,2835.9,2835.1,1.3516]
[1766019852413,0.24008828,2835.9,2835.1,1.3516]
[1766019852613,0.3669,2835.8,2835.1,1.3516]
[1766019853598,1.3783,2835.8,2835.1,1.3516]
[1766019853802,0.3669,2835.7,2835.1,1.3516]
[1766019855410,0.3669,2835.9,2835.2,0.352]
[1766019855627,0.3669,2835.9,2835.3,1.3516]
[1766019855822,0.59362624,2835.9,2835.3,1.3516]
[1766019856227,0.3669,2835.7,2835.3,1.3516]
[1766019857131,1.7452,2835.8,2835.4,1.3516]
[1766019857298,0.22672624,2835.9,2835.4,1.3516]
[1766019857503,0.406504,2836.1,2835.4,1.3516]
[1766019857828,1.3783,2836.0,2835.4,1.3516]
[1766019858004,0.3669,2835.8,2835.4,1.3516]
[1766019860135,0.001,2835.9,2835.5,1.3516]
[1766019860320,0.001,2835.9,2835.6,1.3516]
[1766019860721,0.001,2835.9,2835.7,1.3516]
[1766019862227,0.001,2835.9,2835.6,0.352]
[1766019862429,0.001,2835.9,2835.6,1.7036]
[1766019862737,0.001,2835.9,2835.7,1.3516]
[1766019862990,0.001,2835.9,2835.7,1.7036]
[1766019863240,0.001,2836.1,2835.8,0.352]
[1766019863444,0.001,2836.1,2835.9,1.3516]
[1766019863637,0.001,2836.1,2835.8,0.352]
[1766019863940,0.001,2836.1,2835.8,1.3516]
[1766019864438,0.3679,2836.1,2835.7,1.3516]
[1766019864625,0.56093701,2836.1,2835.5,1.3516]
[1766019864802,0.3679,2836.1,2835.5,1.3516]
[1766019865206,0.3679,2836.1,2835.5,1.7036]
[1766019866536,0.001,2836.1,2835.3,1.06033856]
[1766019866744,0.3669,2835.8,2835.3,1.3516]
[1766019866955,1.7452,2835.8,2835.3,1.7036]
[1766019867126,1.7452,2835.8,2835.3,1.92841559]
[1766019867319,1.7452,2835.8,2835.4,1.3516]
[1766019867729,0.3669,2835.6,2835.2,0.5445559]
[1766019867933,0.001,2835.9,2835.3,1.7036]
[1766019868346,0.001,2835.9,2835.4,1.3516]
[1766019868538,0.3679,2835.9,2835.5,1.3516]
[1766019868743,0.3679,2835.9,2835.4,0.352]
[1766019868928,1.7462,2835.9,2835.5,1.3516]
[1766019869726,0.3679,2835.9,2835.5,1.3516]
[1766019870054,0.3679,2835.9,2835.4,1.7036]
[1766019870055,0.3669,2835.8,2835.4,1.7036]
[1766019870225,0.3669,2835.8,2835.4,1.3516]
[1766019870826,0.3669,2835.8,2835.2,1.7036]
[1766019871139,0.3669,2835.7,2835.0,1.7185]
[1766019871338,0.3669,2835.7,2835.1,0.20705]
[1766019871550,1.7452,2835.7,2835.1,0.20705]
[1766019871954,1.7452,2835.7,2835.1,1.55865]
[1766019873654,1.3783,2835.7,2835.1,1.3516]
[1766019873852,0.3669,2835.5,2835.1,1.3516]
[1766019874829,1.7452,2835.6,2835.2,1.3516]
[1766019875257,0.3669,2835.6,2835.2,1.3516]
[1766019875467,1.7452,2835.6,2835.2,1.3516]
[1766019875860,0.3669,2835.5,2835.2,1.3516]
[1766019876035,0.001,2835.9,2835.0,0.3669]
[1766019876236,1.3783,2835.7,2835.0,2.0705]
[1766019876461,0.3669,2835.6,2835.0,2.27755]
[1766019877529,0.3669,2835.6,2835.0,2.0705]
[1766019877726,0.001,2835.9,2834.9,0.002]
[1766019877727,1.3783,2835.2,2834.9,0.002]
[1766019877932,0.3669,2835.1,2834.9,0.002]
[1766019878350,1.7452,2835.2,2834.9,0.002]
[1766019878547,0.3669,2835.2,2834.9,0.002]
[1766019878932,1.7452,2835.2,2834.9,0.002]
[1766019879136,0.3669,2835.2,2834.9,0.002]
[1766019879341,0.3669,2835.3,2834.9,1.3536]
[1766019879666,0.3669,2835.3,2834.9,1.7056]
[1766019882162,1.7874,2835.3,2834.9,1.3536]
[1766019882861,0.3735,2835.2,2834.9,0.002]
[1766019883470,0.3735,2835.2,2834.9,1.3201]
[1766019883788,1.794,2835.3,2834.9,1.3201]
[1766019885089,0.3735,2835.5,2834.9,0.002]
[1766019885260,1.4205,2835.3,2834.9,0.002]
[1766019885463,1.4205,2835.6,2834.9,0.002]
[1766019885766,1.4205,2835.4,2834.9,0.002]
[1766019885977,0.3735,2835.3,2834.9,0.002]
[1766019886178,1.794,2835.3,2834.9,0.002]
[1766019886492,0.3735,2835.2,2834.9,0.002]
[1766019886674,0.3735,2835.1,2834.9,0.002]
[1766019886984,0.3735,2835.0,2834.9,0.002]
[1766019887854,0.3735,2835.0,2834.6,1.78448023]
[1766019887855,1.794,2835.0,2834.6,1.78448023]
[1766019888078,0.3735,2834.9,2834.6,1.3201]
[1766019888270,0.3735,2834.9,2834.6,0.002]
[1766019889382,0.3735,2835.4,2834.6,1.3201]
[1766019889589,1.794,2835.2,2834.6,1.3201]
[1766019890693,1.4205,2835.2,2834.6,1.3201]
[1766019890864,1.4205,2835.1,2834.6,0.002]
[1766019891059,1.4205,2834.9,2834.6,0.002]
[1766019891298,1.794,2834.9,2834.6,0.002]
[1766019891677,0.46438023,2835.6,2834.6,1.3201]
[1766019891990,3.71076193,2835.7,2834.6,1.3201]
[1766019891991,0.3735,2835.1,2834.6,1.3201]
[1766019892183,1.794,2835.0,2834.6,1.3201]
[1766019892380,0.3735,2835.0,2834.6,1.3201]
[1766019892597,0.3735,2835.3,2834.6,0.002]
[1766019892782,0.3735,2835.3,2834.8,1.3181]
[1766019892968,1.4205,2835.0,2834.6,0.002]
[1766019893169,1.794,2835.0,2834.6,1.3201]
[1766019893497,0.3735,2835.0,2834.7,1.3181]
[1766019893870,0.3735,2835.0,2834.6,1.6944]
[1766019894069,0.3735,2835.0,2834.6,1.3201]
[1766019894265,0.3735,2834.9,2834.6,1.3201]
[1766019894663,0.405504,2835.6,2834.6,0.002]
[1766019894870,0.3735,2835.4,2834.6,1.3201]
[1766019895069,0.3735,2835.4,2834.7,1.6924]
[1766019895283,0.3735,2835.3,2834.7,1.6924]
[1766019895482,1.4205,2835.2,2834.7,1.6924]
[1766019895682,0.3735,2835.1,2834.7,1.6924]
[1766019895999,0.3735,2835.1,2834.7,1.3181]
[1766019896168,0.3735,2835.0,2834.6,1.3201]
[1766019896367,0.3735,2835.0,2834.6,1.6944]
[1766019896701,0.3735,2835.0,2834.7,1.3181]
[1766019897506,0.3735,2835.2,2834.6,0.002]
[1766019897666,0.46438023,2835.5,2834.6,0.002]
[1766019900537,0.5529,2834.4,2834.2,0.002]
[1766019900870,0.5529,2834.4,2833.7,0.002]
[1766019901072,0.3735,2834.1,2833.7,0.002]
[1766019901412,0.3735,2833.6,2833.1,1.3181]
[1766019901705,0.3735,2833.5,2833.1,1.3181]
[1766019901910,10.30576571,2834.4,2833.0,2.37915486]
[1766019902119,1.4205,2834.2,2833.2,1.3181]
[1766019902406,1.4205,2833.8,2833.2,1.3181]
[1766019902608,0.3735,2834.0,2833.4,1.3181]
[1766019902807,0.3735,2833.7,2832.7,0.3743]
[1766019902989,0.1794,2833.6,2833.2,1.3181]
[1766019903183,0.1794,2833.6,2833.3,1.3181]
[1766019903382,0.5529,2833.6,2832.9,1.6924]
[1766019903706,0.5529,2833.6,2833.0,1.3181]
[1766019903873,0.3735,2833.4,2832.9,0.3743]
[1766019904074,1.4205,2833.3,2832.7,1.3181]
[1766019904280,1.794,2833.1,2832.5,1.6924]
[1766019904485,0.19734,2833.4,2832.5,1.06146783]
[1766019904717,0.46438023,2833.6,2832.3,0.3763]
[1766019904718,1.4205,2833.1,2832.4,1.3181]
[1766019904919,0.3735,2832.9,2832.4,1.6924]
[1766019905417,1.794,2832.9,2832.4,1.6924]
[1766019905725,0.3735,2832.8,2832.4,1.3181]
[1766019906286,0.3735,2832.8,2832.3,0.002]
[1766019906287,1.794,2832.8,2832.3,0.002]
[1766019906487,1.794,2833.0,2832.3,1.3201]
[1766019906711,0.2199504,2833.0,2832.5,0.3743]
[1766019906915,1.794,2833.2,2832.6,1.3181]
[1766019907418,0.405504,2832.9,2832.3,0.002]
[1766019907617,1.4205,2832.7,2832.3,0.002]
[1766019907825,1.794,2832.7,2832.3,0.002]
[1766019908094,1.4205,2832.5,2831.7,2.37987213]
[1766019908255,1.794,2832.4,2831.7,2.75417213]
[1766019908406,0.3735,2832.3,2831.7,2.75417213]
[1766019908747,1.4205,2832.0,2831.4,1.3181]
[1766019909239,1.794,2832.0,2831.4,2.37998488]
[1766019909417,0.3735,2831.8,2831.4,1.3181]
[1766019910444,0.3406,2831.7,2831.3,0.002]
[1766019910740,0.3406,2831.7,2831.3,1.4164]
[1766019910907,0.3464,2831.8,2831.4,1.4119]
[1766019911262,1.3231,2832.1,2831.2,4.502e-05]
[1766019911263,0.6898,2831.6,2831.2,4.502e-05]
[1766019911538,0.6898,2831.6,2830.2,0.002]
[1766019911539,0.6898,2830.8,2830.2,0.002]
[1766019911746,0.52106239,2830.8,2830.2,0.002]
[1766019911960,0.3464,2830.5,2830.2,0.002]
[1766019912163,0.48172257,2831.0,2829.7,1.4119]
[1766019912334,0.6879,2830.7,2829.9,1.4119]
[1766019912536,0.6879,2831.1,2830.1,1.4119]
[1766019912735,0.3464,2831.1,2830.5,1.4119]
[1766019912927,0.411672,2831.5,2830.5,1.58882]
[1766019913127,0.3464,2831.4,2830.7,1.4119]
[1766019914470,0.3464,2831.3,2830.7,1.4119]
[1766019914830,0.6881,2831.0,2829.8,0.46438023]
[1766019915054,0.3464,2830.9,2829.9,1.4119]
[1766019915242,0.3464,2830.9,2830.2,1.4119]
[1766019915429,0.3464,2830.9,2830.3,1.4119]
[1766019916229,0.3464,2830.5,2830.1,0.002]
[1766019916428,0.405504,2831.2,2830.1,0.002]
[1766019916754,0.405504,2831.1,2830.1,0.002]
[1766019916953,0.3464,2830.8,2830.1,0.002]
[1766019917248,0.6883,2830.8,2830.1,0.002]
[1766019917564,0.3464,2831.0,2830.2,1.4119]
[1766019917733,0.3464,2831.0,2830.2,0.3573]
[1766019917934,0.3464,2831.0,2830.3,1.4119]
[1766019918349,0.3464,2830.9,2830.1,1.4139]
[1766019918543,0.3464,2830.9,2830.1,1.59102]
[1766019919061,0.3464,2830.9,2830.1,0.53642]
[1766019919252,0.3464,2830.9,2830.3,1.4119]
[1766019920192,0.3464,2831.1,2830.4,1.4119]
[1766019921791,0.3464,2830.8,2830.1,1.59102]
[1766019922094,0.3464,2830.7,2830.1,1.4139]
[1766019922595,0.405504,2830.9,2830.1,1.4139]
[1766019922765,1.0351,2830.8,2830.1,1.4139]
[1766019922966,0.3464,2830.5,2830.1,0.002]
[1766019923380,0.3464,2830.5,2830.1,1.4139]
[1766019923778,0.3464,2830.5,2830.1,0.002]
[1766019923973,0.3464,2830.5,2830.1,1.4139]
[1766019924386,0.3464,2830.5,2830.1,0.002]
[1766019925696,0.3464,2830.4,2830.1,0.002]
[1766019925869,0.3464,2830.3,2830.1,0.002]
[1766019926266,0.46438023,2830.8,2830.1,0.002]
[1766019926495,0.78663881,2830.7,2830.1,1.4139]
[1766019926693,0.3464,2830.7,2830.1,1.4139]
[1766019927704,0.18442513,2831.2,2830.1,0.3593]
[1766019927909,0.81078023,2831.0,2830.3,1.4119]
[1766019928273,0.46438023,2831.0,2830.3,1.4119]
[1766019928493,0.3464,2830.9,2830.3,1.4119]
[1766019929517,1.52682544,2831.1,2830.5,1.4119]
[1766019929811,0.3464,2830.9,2830.1,0.3593]
[1766019930008,0.3464,2830.9,2830.2,2.47422106]
[1766019930213,0.3464,2830.9,2830.3,1.69525211]